[Event "NOR-ch Various 2019"]
[Site "Larvik"]
[Date "2019.07.09"]
[Round "5.26"]
[White "Tenold, Andreas"]
[Black "Schouten, Mathias Lind"]
[Result "0-1"]
[ECO "C10"]
[WhiteElo "1813"]
[BlackElo "1961"]
[Annotator "NA"]
[PlyCount "54"]
[EventDate "2019.07.06"]
[EventType "swiss"]
[EventCountry "NOR"]
[SourceTitle "playchess.com"]
[Source "ChessBase"]
[SourceQuality "1"]
[TimeControl "40/5400+30:1800+30"]

1. e4 {[%emt 0:00:00]} e6 {[%emt 0:00:00]} 2. d4 {[%emt 0:00:00]} d5 {[%emt 0:00:00]} 3. Nd2 {[%emt 0:00:00]} dxe4 {[%emt 0:00:00]} 4. Nxe4 {[%emt 0:00:00]} Nd7 {[%emt 0:00:00]} 5. Nf3 {[%emt 0:00:20]} Ngf6 {[%emt 0:00:00]} 6. Ng3 {[%emt 0:01:48]} c5 {[%emt 0:00:28]} 7. dxc5 {[%emt 0:05:56]} Bxc5 {[%emt 0:00:07]} 8. Bd3 {[%emt 0:00:08]} O-O {[%emt 0:04:14]} 9. O-O {[%emt 0:00:11]} a6 {[%emt 0:01:15]} 10. Qe2 {[%emt 0:06:02]} Qc7 {[%emt 0:02:45]} 11. c4 {[%emt 0:03:06]} b6 {[%emt 0:07:56]} 12. Bd2 {[%emt 0:06:19]} Bb7 {[%emt 0:03:56]} 13. Bc3 {[%emt 0:03:46]} Rac8 {[%emt 0:02:44]} 14. Rac1 {[%emt 0:02:17]} Rfd8 {[%emt 0:02:00]} 15. b4 {[%emt 0:05:16]} Be7 {[%emt 0:01:44]} 16. a3 {[%emt 0:02:09]} Bxf3 {[%emt 0:01:02]} 17. Qxf3 {[%emt 0:00:41]} Ne5 {[%emt 0:00:09]} 18. Bxe5 {[%emt 0:00:26]} Qxe5 {[%emt 0:00:03]} 19. Rfe1 {[%emt 0:01:03]} Qc7 {[%emt 0:02:07]} 20. Qe3 {[%emt 0:08:47]} a5 {[%emt 0:03:19]} 21. bxa5 {[%emt 0:07:36]} bxa5 {[%emt 0:01:09]} 22. Ne4 {[%emt 0:04:51]} Ng4 {[%emt 0:16:55]} 23. Qh3 {[%emt 0:05:04]} f5 {[%emt 0:02:47]} 24. Nc3 {[%emt 0:02:05]} Qf4 {[%emt 0:06:42]} 25. Rc2 {[%emt 0:02:24]} Bc5 {[%emt 0:00:38]} 26. Nd1 {[%emt 0:02:46]} e5 {[%emt 0:16:03]} 27. Rf1 {[%emt 0:04:58]} Rxd3 {[%emt 0:00:20]} 0-1

[Event "NOR-ch Various 2019"]
[Site "Larvik"]
[Date "2019.07.09"]
[Round "5.27"]
[White "Modell, Brage"]
[Black "Grave, Jacob Templen"]
[Result "1/2-1/2"]
[ECO "E42"]
[WhiteElo "1761"]
[BlackElo "1800"]
[Annotator "NA"]
[PlyCount "72"]
[EventDate "2019.07.06"]
[EventType "swiss"]
[EventCountry "NOR"]
[SourceTitle "playchess.com"]
[Source "ChessBase"]
[SourceQuality "1"]
[TimeControl "40/5400+30:1800+30"]

1. d4 {[%emt 0:00:00]} Nf6 {[%emt 0:00:00]} 2. c4 {[%emt 0:00:00]} e6 {[%emt 0:00:00]} 3. Nc3 {[%emt 0:00:00]} Bb4 {[%emt 0:00:04]} 4. e3 {[%emt 0:00:00]} b6 {[%emt 0:00:19]} 5. Nge2 {[%emt 0:00:43]} c5 {[%emt 0:00:18]} 6. a3 {[%emt 0:02:30]} Ba5 {[%emt 0:00:35]} 7. Rb1 {[%emt 0:02:07]} Qe7 {[%emt 0:01:14]} 8. Bd2 {[%emt 0:01:44]} Bb7 {[%emt 0:03:49]} 9. Nf4 {[%emt 0:02:40]} O-O {[%emt 0:04:43]} 10. Be2 {[%emt 0:02:26]} d5 {[%emt 0:07:22]} 11. cxd5 {[%emt 0:02:46]} exd5 {[%emt 0:04:41]} 12. O-O {[%emt 0:02:25]} cxd4 {[%emt 0:04:52]} 13. exd4 {[%emt 0:01:13]} Bxc3 {[%emt 0:00:21]} 14. Bxc3 {[%emt 0:00:13]} Nc6 {[%emt 0:02:04]} 15. Bf3 {[%emt 0:06:48]} Qd6 {[%emt 0:01:39]} 16. Ne2 {[%emt 0:02:03]} Rfe8 {[%emt 0:02:07]} 17. Ng3 {[%emt 0:02:34]} Ne4 {[%emt 0:02:35]} 18. Qd3 {[%emt 0:06:50]} Nxc3 {[%emt 0:01:44]} 19. Qxc3 {[%emt 0:04:18]} Rac8 {[%emt 0:04:17]} 20. Bg4 {[%emt 0:02:22]} Rc7 {[%emt 0:00:22]} 21. Rfe1 {[%emt 0:01:44]} Rxe1+ {[%emt 0:06:16]} 22. Rxe1 {[%emt 0:00:48]} g6 {[%emt 0:00:55]} 23. Re8+ {[%emt 0:04:39]} Kg7 {[%emt 0:00:07]} 24. Qe3 {[%emt 0:01:27]} Qf6 {[%emt 0:05:28]} 25. Ne2 {[%emt 0:04:57]} Ba6 {[%emt 0:00:38]} 26. Qg3 {[%emt 0:02:15]} Re7 {[%emt 0:12:00]} 27. Rxe7 {[%emt 0:01:10]} Qxe7 {[%emt 0:01:01]} 28. Qe3 {[%emt 0:01:21]} Qh4 {[%emt 0:01:23]} 29. Bd7 {[%emt 0:01:46]} Na5 {[%emt 0:04:00]} 30. Qe5+ {[%emt 0:01:15]} Qf6 {[%emt 0:01:12]} 31. Qxf6+ {[%emt 0:03:41]} Kxf6 {[%emt 0:00:08]} 32. Nc3 {[%emt 0:00:24]} Ke7 {[%emt 0:01:17]} 33. b4 {[%emt 0:03:15]} Kxd7 {[%emt 0:06:48]} 34. bxa5 {[%emt 0:00:15]} Bc4 {[%emt 0:01:22]} 35. axb6 {[%emt 0:00:26]} axb6 {[%emt 0:00:08]} 36. f4 {[%emt 0:01:11]} Kc6 {[%emt 0:01:56]} 1/2-1/2

[Event "NOR-ch Various 2019"]
[Site "Larvik"]
[Date "2019.07.09"]
[Round "5.28"]
[White "Brodtkorb, Lars Johan"]
[Black "Andersen, Lars Even"]
[Result "1-0"]
[ECO "E33"]
[WhiteElo "2077"]
[BlackElo "2314"]
[Annotator "NA"]
[PlyCount "149"]
[EventDate "2019.07.06"]
[EventType "swiss"]
[EventCountry "NOR"]
[SourceTitle "playchess.com"]
[Source "ChessBase"]
[SourceQuality "1"]
[TimeControl "40/5400+30:1800+30"]

1. d4 {[%emt 0:00:00]} Nf6 {[%emt 0:00:00]} 2. c4 {[%emt 0:00:03]} Nc6 {[%emt 0:00:04]} 3. Nf3 {[%emt 0:05:22]} e6 {[%emt 0:00:36]} 4. Nc3 {[%emt 0:01:11]} Bb4 {[%emt 0:00:48]} 5. Qc2 {[%emt 0:02:44]} O-O {[%emt 0:07:31]} 6. e3 {[%emt 0:07:11]} Re8 {[%emt 0:02:47]} 7. Bd2 {[%emt 0:05:41]} e5 {[%emt 0:04:15]} 8. d5 {[%emt 0:00:22]} Nb8 {[%emt 0:06:28]} 9. e4 {[%emt 0:04:46]} d6 {[%emt 0:08:25]} 10. g3 {[%emt 0:03:41]} a5 {[%emt 0:05:43]} 11. Nh4 {[%emt 0:02:07]} Na6 {[%emt 0:05:41]} 12. f3 {[%emt 0:11:04]} Nc5 {[%emt 0:04:11]} 13. Ng2 {[%emt 0:01:33]} Kh8 {[%emt 0:09:15]} 14. g4 {[%emt 0:04:14]} Nfd7 {[%emt 0:06:26]} 15. Be2 {[%emt 0:00:32]} Nf8 {[%emt 0:05:20]} 16. h4 {[%emt 0:00:31]} Qe7 {[%emt 0:09:04]} 17. Bg5 {[%emt 0:01:53]} f6 {[%emt 0:01:23]} 18. Bd2 {[%emt 0:00:34]} Bd7 {[%emt 0:06:42]} 19. h5 {[%emt 0:00:39]} Kg8 {[%emt 0:01:01]} 20. Ne3 {[%emt 0:00:33]} h6 {[%emt 0:01:54]} 21. Nf1 {[%emt 0:01:26]} Nh7 {[%emt 0:00:50]} 22. Ng3 {[%emt 0:00:16]} Ng5 {[%emt 0:03:59]} 23. Kf1 {[%emt 0:00:19]} Bxc3 {[%emt 0:01:44]} 24. Bxc3 {[%emt 0:01:16]} b6 {[%emt 0:00:58]} 25. Kg2 {[%emt 0:00:19]} Ra7 {[%emt 0:00:41]} 26. b3 {[%emt 0:01:50]} Rea8 {[%emt 0:00:22]} 27. Bd2 {[%emt 0:04:17]} Re8 {[%emt 0:02:00]} 28. Be3 {[%emt 0:00:25]} Rea8 {[%emt 0:00:27]} 29. Rhc1 {[%emt 0:01:34]} Qf8 {[%emt 0:00:38]} 30. Rab1 {[%emt 0:00:26]} Qb8 {[%emt 0:01:13]} 31. Qd1 {[%emt 0:01:08]} Qe8 {[%emt 0:00:47]} 32. Bf2 {[%emt 0:01:56]} Qd8 {[%emt 0:01:55]} 33. Qg1 {[%emt 0:01:57]} Qe8 {[%emt 0:00:44]} 34. Qe1 {[%emt 0:02:30]} Qc8 {[%emt 0:00:20]} 35. Qd1 {[%emt 0:02:58]} Qe8 {[%emt 0:00:26]} 36. Nf1 {[%emt 0:00:36]} Qc8 {[%emt 0:00:39]} 37. Nd2 {[%emt 0:00:42]} Qe8 {[%emt 0:00:51]} 38. Rc3 {[%emt 0:00:58]} Kf8 {[%emt 0:01:24]} 39. a3 {[%emt 0:05:38]} g6 {[%emt 0:00:57]} 40. hxg6 {[%emt 0:02:52]} Qxg6 {[%emt 0:00:12]} 41. Qh1 {[%emt 0:31:09]} Ke7 {[%emt 0:31:13]} 42. b4 {[%emt 0:00:00]} axb4 {[%emt 0:00:00]} 43. axb4 {[%emt 0:00:00]} Ra2 {[%emt 0:00:00]} 44. Be3 {[%emt 0:00:00]} Na4 {[%emt 0:00:00]} 45. Rcb3 {[%emt 0:00:29]} Rh8 {[%emt 0:00:00]} 46. Kf2 {[%emt 0:09:02]} Rh7 {[%emt 0:00:00]} 47. f4 {[%emt 0:02:48]} exf4 {[%emt 0:00:00]} 48. Bxf4 {[%emt 0:00:03]} Nf7 {[%emt 0:00:00]} 49. Rg3 {[%emt 0:03:02]} Ne5 {[%emt 0:00:00]} 50. Qd1 {[%emt 0:00:45]} Rb2 {[%emt 0:01:18]} 51. Rxb2 {[%emt 0:00:32]} Nxb2 {[%emt 0:00:01]} 52. Qb3 {[%emt 0:01:48]} Na4 {[%emt 0:00:14]} 53. Qc2 {[%emt 0:01:15]} Rh8 {[%emt 0:00:18]} 54. Nb3 {[%emt 0:02:15]} Ra8 {[%emt 0:04:30]} 55. Nd4 {[%emt 0:00:17]} Qe8 {[%emt 0:00:32]} 56. Bxh6 {[%emt 0:02:52]} Nf7 {[%emt 0:00:06]} 57. Bf4 {[%emt 0:00:41]} Kd8 {[%emt 0:00:42]} 58. Rh3 {[%emt 0:01:28]} Ng5 {[%emt 0:00:40]} 59. Bxg5 {[%emt 0:00:27]} fxg5 {[%emt 0:00:07]} 60. e5 {[%emt 0:01:12]} Qxe5 {[%emt 0:00:24]} 61. Nc6+ {[%emt 0:00:13]} Bxc6 {[%emt 0:00:12]} 62. dxc6 {[%emt 0:00:21]} b5 {[%emt 0:01:29]} 63. Qg6 {[%emt 0:00:36]} Qf4+ {[%emt 0:00:29]} 64. Kg2 {[%emt 0:00:47]} Qf8 {[%emt 0:00:24]} 65. Rf3 {[%emt 0:01:22]} Qe8 {[%emt 0:00:26]} 66. Qxg5+ {[%emt 0:00:19]} Kc8 {[%emt 0:00:09]} 67. Re3 {[%emt 0:00:14]} Qf8 {[%emt 0:01:02]} 68. Qg7 {[%emt 0:00:20]} Qd8 {[%emt 0:00:15]} 69. Qf7 {[%emt 0:00:17]} Kb8 {[%emt 0:00:34]} 70. Re8 {[%emt 0:00:09]} Qxe8 {[%emt 0:00:05]} 71. Qxe8+ {[%emt 0:00:06]} Ka7 {[%emt 0:00:05]} 72. Qe3+ {[%emt 0:00:42]} Nb6 {[%emt 0:00:11]} 73. c5 {[%emt 0:00:43]} dxc5 {[%emt 0:00:55]} 74. bxc5 {[%emt 0:00:09]} Nd5 {[%emt 0:00:26]} 75. Qf3 {[%emt 0:00:15]} 1-0

[Event "NOR-ch Various 2019"]
[Site "Larvik"]
[Date "2019.07.09"]
[Round "5.29"]
[White "Hobber, Anders"]
[Black "Huse, Sigurd Kjelsbol"]
[Result "1-0"]
[ECO "D02"]
[WhiteElo "2294"]
[BlackElo "2122"]
[Annotator "NA"]
[PlyCount "43"]
[EventDate "2019.07.06"]
[EventType "swiss"]
[EventCountry "NOR"]
[SourceTitle "playchess.com"]
[Source "ChessBase"]
[SourceQuality "1"]
[TimeControl "40/5400+30:1800+30"]

1. d4 {[%emt 0:00:00]} d5 {[%emt 0:00:00]} 2. Bf4 {[%emt 0:00:00]} Nf6 {[%emt 0:00:00]} 3. e3 {[%emt 0:00:00]} c5 {[%emt 0:05:14]} 4. c3 {[%emt 0:00:11]} e6 {[%emt 0:00:47]} 5. Nd2 {[%emt 0:01:14]} Nbd7 {[%emt 0:01:45]} 6. Bd3 {[%emt 0:02:15]} Be7 {[%emt 0:00:25]} 7. Ngf3 {[%emt 0:04:06]} O-O {[%emt 0:02:39]} 8. Ne5 {[%emt 0:06:09]} Qb6 {[%emt 0:06:39]} 9. Rb1 {[%emt 0:02:57]} Bd6 {[%emt 0:01:08]} 10. Bg3 {[%emt 0:15:51]} Qc7 {[%emt 0:06:27]} 11. f4 {[%emt 0:00:54]} b6 {[%emt 0:00:28]} 12. O-O {[%emt 0:01:44]} Bb7 {[%emt 0:00:13]} 13. Qf3 {[%emt 0:01:21]} c4 {[%emt 0:05:34]} 14. Bc2 {[%emt 0:01:18]} b5 {[%emt 0:00:05]} 15. Bh4 {[%emt 0:12:59]} Qa5 {[%emt 0:02:06]} 16. Qh3 {[%emt 0:04:43]} g6 {[%emt 0:05:05]} 17. Ndf3 {[%emt 0:07:26]} Qc7 {[%emt 0:07:56]} 18. Ng5 {[%emt 0:06:04]} h6 {[%emt 0:02:03]} 19. Nxe6 {[%emt 0:02:32]} fxe6 {[%emt 0:01:51]} 20. Qxe6+ {[%emt 0:00:40]} Kg7 {[%emt 0:00:12]} 21. Nxd7 {[%emt 0:01:02]} Rae8 {[%emt 0:01:47]} 22. Bxf6+ {[%emt 0:01:16]} 1-0

[Event "NOR-ch Various 2019"]
[Site "Larvik"]
[Date "2019.07.09"]
[Round "5.30"]
[White "Thanke, Bror"]
[Black "Hole, Oystein"]
[Result "0-1"]
[ECO "B12"]
[WhiteElo "2191"]
[BlackElo "2293"]
[Annotator "NA"]
[PlyCount "80"]
[EventDate "2019.07.06"]
[EventType "swiss"]
[EventCountry "NOR"]
[SourceTitle "playchess.com"]
[Source "ChessBase"]
[SourceQuality "1"]
[TimeControl "40/5400+30:1800+30"]

1. e4 {[%emt 0:00:00]} c6 {[%emt 0:00:00]} 2. d4 {[%emt 0:00:00]} d5 {[%emt 0:00:00]} 3. e5 {[%emt 0:00:26]} c5 {[%emt 0:00:12]} 4. dxc5 {[%emt 0:00:36]} e6 {[%emt 0:00:15]} 5. Be3 {[%emt 0:01:14]} Nh6 {[%emt 0:02:48]} 6. Bd3 {[%emt 0:09:25]} Nc6 {[%emt 0:00:39]} 7. Nf3 {[%emt 0:00:26]} Ng4 {[%emt 0:07:56]} 8. Bf4 {[%emt 0:00:12]} Bxc5 {[%emt 0:00:26]} 9. O-O {[%emt 0:00:12]} Qb6 {[%emt 0:02:36]} 10. Qe2 {[%emt 0:00:56]} Qxb2 {[%emt 0:03:51]} 11. Nbd2 {[%emt 0:01:12]} Nxf2 {[%emt 0:01:28]} 12. Be3 {[%emt 0:02:20]} Nxd3 {[%emt 0:02:07]} 13. cxd3 {[%emt 0:02:02]} Qb6 {[%emt 0:04:32]} 14. Bxc5 {[%emt 0:02:17]} Qxc5+ {[%emt 0:00:02]} 15. Kh1 {[%emt 0:00:19]} O-O {[%emt 0:01:25]} 16. Nb3 {[%emt 0:07:31]} Qe7 {[%emt 0:01:46]} 17. Rac1 {[%emt 0:05:22]} Bd7 {[%emt 0:06:09]} 18. Qe3 {[%emt 0:04:38]} b6 {[%emt 0:07:04]} 19. Rf2 {[%emt 0:06:34]} Rac8 {[%emt 0:07:36]} 20. Rcf1 {[%emt 0:01:11]} f5 {[%emt 0:05:48]} 21. exf6 {[%emt 0:00:42]} Rxf6 {[%emt 0:01:01]} 22. Re1 {[%emt 0:05:54]} e5 {[%emt 0:04:30]} 23. h3 {[%emt 0:07:07]} Re8 {[%emt 0:01:58]} 24. Rfe2 {[%emt 0:00:57]} Qf7 {[%emt 0:11:39]} 25. Nbd2 {[%emt 0:03:07]} Rf4 {[%emt 0:03:26]} 26. Qg1 {[%emt 0:06:22]} Qf6 {[%emt 0:03:38]} 27. Qh2 {[%emt 0:08:15]} g5 {[%emt 0:03:35]} 28. Qg3 {[%emt 0:02:51]} h6 {[%emt 0:00:10]} 29. Re3 {[%emt 0:09:30]} Bf5 {[%emt 0:05:41]} 30. R1e2 {[%emt 0:01:50]} d4 {[%emt 0:02:47]} 31. Re4 {[%emt 0:00:16]} Qg7 {[%emt 0:01:41]} 32. Qe1 {[%emt 0:08:24]} Bxe4 {[%emt 0:00:13]} 33. Nxe4 {[%emt 0:00:19]} Ref8 {[%emt 0:02:40]} 34. Ned2 {[%emt 0:00:42]} Qg6 {[%emt 0:03:17]} 35. Qb1 {[%emt 0:00:17]} Qf5 {[%emt 0:01:32]} 36. Qb5 {[%emt 0:01:10]} e4 {[%emt 0:01:30]} 37. Qc4+ {[%emt 0:01:29]} Qf7 {[%emt 0:00:16]} 38. Qxc6 {[%emt 0:02:13]} exf3 {[%emt 0:00:08]} 39. gxf3 {[%emt 0:00:37]} Rxf3 {[%emt 0:00:59]} 40. Qxh6 {[%emt 0:00:33]} Rf1+ {[%emt 0:00:32]} 0-1

[Event "NOR-ch Various 2019"]
[Site "Larvik"]
[Date "2019.07.09"]
[Round "5.31"]
[White "Shehzad, Shazil"]
[Black "Lund, Gunnar"]
[Result "1/2-1/2"]
[ECO "B56"]
[WhiteElo "2088"]
[BlackElo "2285"]
[Annotator "NA"]
[PlyCount "48"]
[EventDate "2019.07.06"]
[EventType "swiss"]
[EventCountry "NOR"]
[SourceTitle "playchess.com"]
[Source "ChessBase"]
[SourceQuality "1"]
[TimeControl "40/5400+30:1800+30"]

1. e4 {[%emt 0:02:50]} c5 {[%emt 0:00:06]} 2. Nf3 {[%emt 0:06:04]} d6 {[%emt 0:00:50]} 3. d4 {[%emt 0:00:05]} cxd4 {[%emt 0:00:08]} 4. Nxd4 {[%emt 0:00:04]} Nf6 {[%emt 0:00:12]} 5. Nc3 {[%emt 0:00:05]} e5 {[%emt 0:00:13]} 6. Bb5+ {[%emt 0:00:05]} Bd7 {[%emt 0:00:09]} 7. Bxd7+ {[%emt 0:00:31]} Qxd7 {[%emt 0:00:02]} 8. Nf5 {[%emt 0:01:39]} Nxe4 {[%emt 0:14:59]} 9. Nxe4 {[%emt 0:00:39]} Qxf5 {[%emt 0:00:14]} 10. Nxd6+ {[%emt 0:00:08]} Bxd6 {[%emt 0:00:07]} 11. Qxd6 {[%emt 0:00:04]} Nc6 {[%emt 0:02:22]} 12. O-O {[%emt 0:01:42]} Qd7 {[%emt 0:21:21]} 13. Qxd7+ {[%emt 0:03:18]} Kxd7 {[%emt 0:00:07]} 14. Be3 {[%emt 0:00:52]} Rad8 {[%emt 0:02:51]} 15. c3 {[%emt 0:02:44]} Ke6 {[%emt 0:00:11]} 16. Rad1 {[%emt 0:00:43]} b6 {[%emt 0:01:18]} 17. f3 {[%emt 0:01:50]} f5 {[%emt 0:08:40]} 18. Rfe1 {[%emt 0:04:26]} Rxd1 {[%emt 0:01:23]} 19. Rxd1 {[%emt 0:00:06]} f4 {[%emt 0:00:24]} 20. Bf2 {[%emt 0:00:54]} g5 {[%emt 0:04:19]} 21. c4 {[%emt 0:04:00]} Rd8 {[%emt 0:04:52]} 22. Rxd8 {[%emt 0:00:46]} Nxd8 {[%emt 0:00:29]} 23. Kf1 {[%emt 0:02:58]} e4 {[%emt 0:00:01]} 24. Bd4 e3 {[%emt 0:00:11]} 1/2-1/2

[Event "NOR-ch Various 2019"]
[Site "Larvik"]
[Date "2019.07.09"]
[Round "5.32"]
[White "Skotheim, Andreas"]
[Black "Abdrlauf, Elham"]
[Result "1/2-1/2"]
[ECO "D26"]
[WhiteElo "2138"]
[BlackElo "2235"]
[Annotator "NA"]
[PlyCount "90"]
[EventDate "2019.07.06"]
[EventType "swiss"]
[EventCountry "NOR"]
[SourceTitle "playchess.com"]
[Source "ChessBase"]
[SourceQuality "1"]
[TimeControl "40/5400+30:1800+30"]

1. d4 {[%emt 0:00:00]} d5 {[%emt 0:00:00]} 2. c4 {[%emt 0:00:23]} dxc4 {[%emt 0:00:06]} 3. Nf3 {[%emt 0:02:00]} Nf6 {[%emt 0:02:49]} 4. e3 {[%emt 0:00:56]} e6 {[%emt 0:00:11]} 5. Bxc4 {[%emt 0:02:23]} c5 {[%emt 0:02:06]} 6. Nc3 {[%emt 0:05:35]} Be7 {[%emt 0:02:27]} 7. O-O {[%emt 0:13:57]} O-O {[%emt 0:02:00]} 8. Qe2 {[%emt 0:08:32]} a6 {[%emt 0:02:07]} 9. dxc5 {[%emt 0:08:00]} Bxc5 {[%emt 0:00:33]} 10. e4 {[%emt 0:02:17]} b5 {[%emt 0:08:05]} 11. Bb3 {[%emt 0:00:35]} b4 {[%emt 0:11:21]} 12. e5 {[%emt 0:11:09]} bxc3 {[%emt 0:00:10]} 13. exf6 {[%emt 0:00:05]} Qxf6 {[%emt 0:06:05]} 14. Bg5 {[%emt 0:02:34]} Qg6 {[%emt 0:00:27]} 15. Bc2 {[%emt 0:05:45]} Qh5 {[%emt 0:03:28]} 16. bxc3 {[%emt 0:07:47]} Bb7 {[%emt 0:01:10]} 17. Rab1 {[%emt 0:01:46]} Ra7 {[%emt 0:13:28]} 18. Be4 {[%emt 0:02:22]} Bxe4 {[%emt 0:00:33]} 19. Qxe4 {[%emt 0:00:05]} Rc7 {[%emt 0:02:00]} 20. Bf4 {[%emt 0:03:27]} Rcc8 {[%emt 0:01:07]} 21. Rfd1 {[%emt 0:02:39]} Nc6 {[%emt 0:01:21]} 22. h3 {[%emt 0:02:47]} h6 {[%emt 0:03:30]} 23. Qa4 {[%emt 0:00:53]} Qf5 {[%emt 0:01:24]} 24. Bg3 {[%emt 0:00:41]} Ne7 {[%emt 0:11:46]} 25. c4 {[%emt 0:04:32]} Qe4 {[%emt 0:02:26]} 26. Nd2 {[%emt 0:02:28]} Qc6 {[%emt 0:03:12]} 27. Qxc6 {[%emt 0:00:48]} Rxc6 {[%emt 0:00:04]} 28. Ne4 {[%emt 0:00:39]} Nf5 {[%emt 0:00:50]} 29. Nxc5 {[%emt 0:00:36]} Nxg3 {[%emt 0:00:57]} 30. Nd7 {[%emt 0:00:40]} Ne2+ {[%emt 0:00:05]} 31. Kf1 {[%emt 0:00:14]} Nc3 {[%emt 0:00:05]} 32. Nxf8 {[%emt 0:00:25]} Nxb1 {[%emt 0:00:29]} 33. Nxe6 {[%emt 0:02:34]} fxe6 {[%emt 0:00:17]} 34. Rxb1 {[%emt 0:00:07]} Rxc4 {[%emt 0:00:19]} 35. Rb6 {[%emt 0:01:39]} Rc1+ {[%emt 0:00:00]} 36. Ke2 {[%emt 0:00:05]} Rc2+ {[%emt 0:00:08]} 37. Ke3 {[%emt 0:00:10]} Rxa2 {[%emt 0:00:09]} 38. Rxe6 {[%emt 0:00:17]} a5 {[%emt 0:00:00]} 39. Ra6 {[%emt 0:00:52]} a4 {[%emt 0:00:00]} 40. h4 {[%emt 0:01:03]} a3 {[%emt 0:02:05]} 41. h5 {[%emt 0:33:45]} Kf7 {[%emt 0:28:11]} 42. g4 {[%emt 0:01:39]} Ra1 {[%emt 0:00:13]} 43. Kf4 {[%emt 0:01:03]} a2 {[%emt 0:01:31]} 44. Kf3 {[%emt 0:00:00]} Ke7 {[%emt 0:00:00]} 45. Kg2 {[%emt 0:00:00]} Kf7 {[%emt 0:00:40]} 1/2-1/2

[Event "NOR-ch Various 2019"]
[Site "Larvik"]
[Date "2019.07.09"]
[Round "5.33"]
[White "Moen, Ole Christian"]
[Black "Laverton, Christian"]
[Result "0-1"]
[ECO "B48"]
[WhiteElo "2234"]
[BlackElo "2115"]
[Annotator "NA"]
[PlyCount "91"]
[EventDate "2019.07.06"]
[EventType "swiss"]
[EventCountry "NOR"]
[SourceTitle "playchess.com"]
[Source "ChessBase"]
[SourceQuality "1"]
[TimeControl "40/5400+30:1800+30"]

1. e4 {[%emt 0:03:33]} c5 {[%emt 0:00:00]} 2. Nf3 {[%emt 0:00:05]} e6 {[%emt 0:00:00]} 3. d4 {[%emt 0:00:24]} cxd4 {[%emt 0:00:03]} 4. Nxd4 {[%emt 0:00:03]} Nc6 {[%emt 0:00:16]} 5. Nc3 {[%emt 0:00:58]} Qc7 {[%emt 0:00:28]} 6. Nb3 {[%emt 0:00:41]} Nf6 {[%emt 0:01:40]} 7. Bd3 {[%emt 0:00:25]} a6 {[%emt 0:02:00]} 8. Be3 {[%emt 0:00:57]} b5 {[%emt 0:03:31]} 9. a4 {[%emt 0:01:57]} b4 {[%emt 0:02:14]} 10. Ne2 {[%emt 0:01:25]} d5 {[%emt 0:03:56]} 11. Bf4 {[%emt 0:02:38]} Bd6 {[%emt 0:08:28]} 12. Bxd6 {[%emt 0:05:42]} Qxd6 {[%emt 0:00:08]} 13. exd5 {[%emt 0:00:21]} Qxd5 {[%emt 0:03:12]} 14. O-O {[%emt 0:00:38]} O-O {[%emt 0:02:21]} 15. Re1 {[%emt 0:03:14]} Bb7 {[%emt 0:04:56]} 16. Nf4 {[%emt 0:02:48]} Qg5 {[%emt 0:01:38]} 17. g3 {[%emt 0:03:30]} Rad8 {[%emt 0:04:04]} 18. h4 {[%emt 0:03:50]} Qh6 {[%emt 0:02:13]} 19. Nh3 {[%emt 0:04:58]} e5 {[%emt 0:07:06]} 20. Nc5 {[%emt 0:05:05]} Ba8 {[%emt 0:05:11]} 21. Ng5 {[%emt 0:00:56]} Rd5 {[%emt 0:09:41]} 22. Nxa6 {[%emt 0:02:11]} Bb7 {[%emt 0:15:05]} 23. Nc7 {[%emt 0:01:54]} Rd7 {[%emt 0:03:20]} 24. Nb5 {[%emt 0:00:19]} Re8 {[%emt 0:05:34]} 25. Nxh7 {[%emt 0:05:10]} e4 {[%emt 0:02:12]} 26. Nxf6+ {[%emt 0:00:18]} Qxf6 {[%emt 0:00:17]} 27. Qh5 {[%emt 0:02:02]} Ne5 {[%emt 0:04:24]} 28. Rxe4 {[%emt 0:03:05]} Bxe4 {[%emt 0:03:37]} 29. Bxe4 {[%emt 0:00:08]} g6 {[%emt 0:00:28]} 30. Qe2 {[%emt 0:01:00]} Red8 {[%emt 0:00:54]} 31. Rf1 {[%emt 0:02:41]} Rd2 {[%emt 0:00:54]} 32. Qe3 {[%emt 0:00:13]} Nc4 {[%emt 0:01:25]} 33. Qb3 {[%emt 0:00:19]} Nxb2 {[%emt 0:01:19]} 34. Qxb4 {[%emt 0:01:05]} Nd1 {[%emt 0:00:40]} 35. Qc5 {[%emt 0:00:08]} Qe6 {[%emt 0:01:11]} 36. Bf3 {[%emt 0:09:43]} Nxf2 {[%emt 0:01:35]} 37. Qxf2 {[%emt 0:04:01]} Rxf2 {[%emt 0:00:14]} 38. Rxf2 {[%emt 0:00:03]} Qh3 {[%emt 0:01:30]} 39. Rg2 {[%emt 0:00:15]} Qf5 {[%emt 0:00:29]} 40. Rf2 {[%emt 0:00:24]} Qc5 {[%emt 0:00:31]} 41. Kg2 {[%emt 0:30:07]} Re8 {[%emt 0:30:52]} 42. c3 {[%emt 0:00:56]} Re1 {[%emt 0:00:00]} 43. Nd4 {[%emt 0:00:00]} Qxc3 {[%emt 0:00:00]} 44. Ne2 {[%emt 0:00:00]} Qb3 {[%emt 0:00:00]} 45. Rf1 {[%emt 0:00:00]} Rxf1 {[%emt 0:00:00]} 46. Kxf1 {[%emt 0:00:00]} 0-1